[Event "Live Chess"]
[Site "Chess.com"]
[Date "2010.12.07"]
[Round "-"]
[White "nevermind666"]
[Black "hipposcottimus"]
[Result "0-1"]
[CurrentPosition "r2q1rk1/ppp2ppp/8/2b1p3/2B1P3/2P5/PP1BKP2/RN5b w - -"]
[Timezone "UTC"]
[ECO "C20"]
[ECOUrl "https://www.chess.com/openings/Kings-Pawn-Opening-Napoleon-Attack"]
[UTCDate "2010.12.07"]
[UTCTime "22:32:25"]
[WhiteElo "1502"]
[BlackElo "1661"]
[TimeControl "60"]
[Termination "hipposcottimus won by resignation"]
[StartTime "22:32:25"]
[EndDate "2010.12.07"]
[EndTime "22:33:33"]
[Link "https://www.chess.com/game/live/75060865"]

1. e4 {[%clk 0:01:00]} 1... e5 {[%clk 0:01:00]} 2. Qf3 {[%clk 0:00:59.3]} 2... Nc6 {[%clk 0:00:58.3]} 3. Bc4 {[%clk 0:00:58.6]} 3... Nf6 {[%clk 0:00:58]} 4. d3 {[%clk 0:00:56.9]} 4... Nd4 {[%clk 0:00:57.4]} 5. Qd1 {[%clk 0:00:55]} 5... d5 {[%clk 0:00:56.1]} 6. Bb3 {[%clk 0:00:53.1]} 6... dxe4 {[%clk 0:00:54.8]} 7. dxe4 {[%clk 0:00:52.3]} 7... Bg4 {[%clk 0:00:45.9]} 8. Nf3 {[%clk 0:00:50.9]} 8... Bh5 {[%clk 0:00:45.5]} 9. h3 {[%clk 0:00:48]} 9... Bc5 {[%clk 0:00:40.9]} 10. g4 {[%clk 0:00:45.4]} 10... Nxg4 {[%clk 0:00:40.5]} 11. hxg4 {[%clk 0:00:41.4]} 11... Bxg4 {[%clk 0:00:39.8]} 12. Bc4 {[%clk 0:00:37.2]} 12... Bxf3 {[%clk 0:00:38.6]} 13. Qd2 {[%clk 0:00:34.6]} 13... Bxh1 {[%clk 0:00:36.9]} 14. c3 {[%clk 0:00:31.7]} 14... Nf3+ {[%clk 0:00:35.7]} 15. Ke2 {[%clk 0:00:29.1]} 15... Nxd2 {[%clk 0:00:34.7]} 16. Bxd2 {[%clk 0:00:28.2]} 16... O-O {[%clk 0:00:31.8]} 0-1

[Event "Live Chess"]
[Site "Chess.com"]
[Date "2010.12.07"]
[Round "-"]
[White "hipposcottimus"]
[Black "nevermind666"]
[Result "1-0"]
[CurrentPosition "6n1/ppN1b2r/3p1kQp/4p2B/2P5/8/PP1K1PPP/n1B4R b - -"]
[Timezone "UTC"]
[ECO "C00"]
[ECOUrl "https://www.chess.com/openings/Pirc-Defense-Small-Center-Defense"]
[UTCDate "2010.12.07"]
[UTCTime "22:30:50"]
[WhiteElo "1656"]
[BlackElo "1507"]
[TimeControl "60"]
[Termination "hipposcottimus won by checkmate"]
[StartTime "22:30:50"]
[EndDate "2010.12.07"]
[EndTime "22:32:02"]
[Link "https://www.chess.com/game/live/75060470"]

1. e4 {[%clk 0:01:00]} 1... e6 {[%clk 0:01:00]} 2. d4 {[%clk 0:00:58.6]} 2... d6 {[%clk 0:00:59.4]} 3. e5 {[%clk 0:00:58.4]} 3... Qf6 {[%clk 0:00:58.8]} 4. exf6 {[%clk 0:00:56.3]} 4... gxf6 {[%clk 0:00:58.3]} 5. Nf3 {[%clk 0:00:55.7]} 5... e5 {[%clk 0:00:57.4]} 6. dxe5 {[%clk 0:00:54.4]} 6... fxe5 {[%clk 0:00:55.9]} 7. Nc3 {[%clk 0:00:54.2]} 7... Bg4 {[%clk 0:00:54.5]} 8. Nd5 {[%clk 0:00:53.4]} 8... Bxf3 {[%clk 0:00:53.2]} 9. Qxf3 {[%clk 0:00:52.7]} 9... Nc6 {[%clk 0:00:52.2]} 10. Nxc7+ {[%clk 0:00:51.9]} 10... Kd7 {[%clk 0:00:51.3]} 11. Nxa8 {[%clk 0:00:51.1]} 11... Nd4 {[%clk 0:00:49.6]} 12. Qxf7+ {[%clk 0:00:50.4]} 12... Kc6 {[%clk 0:00:47.5]} 13. Qc7+ {[%clk 0:00:42.6]} 13... Kd5 {[%clk 0:00:46.1]} 14. c4+ {[%clk 0:00:40.6]} 14... Ke6 {[%clk 0:00:43.5]} 15. Be2 {[%clk 0:00:39.5]} 15... Nc2+ {[%clk 0:00:41.2]} 16. Kd2 {[%clk 0:00:37.2]} 16... Nxa1 {[%clk 0:00:40.1]} 17. Qd8 {[%clk 0:00:34.6]} 17... Be7 {[%clk 0:00:39.2]} 18. Qe8 {[%clk 0:00:32.8]} 18... h6 {[%clk 0:00:35.6]} 19. Nc7+ {[%clk 0:00:32.4]} 19... Kf6 {[%clk 0:00:31.3]} 20. Bh5 {[%clk 0:00:32]} 20... Rh7 {[%clk 0:00:29.1]} 21. Qg6# {[%clk 0:00:29.4]} 1-0

[Event "Live Chess"]
[Site "Chess.com"]
[Date "2010.12.07"]
[Round "-"]
[White "hipposcottimus"]
[Black "blackhawk-b52"]
[Result "1-0"]
[CurrentPosition "6rk/1b4Bp/2p1R3/1p1nP3/8/1Pp3Q1/r1P3PP/1R4K1 b - -"]
[Timezone "UTC"]
[ECO "B20"]
[ECOUrl "https://www.chess.com/openings/Sicilian-Defense"]
[UTCDate "2010.12.07"]
[UTCTime "18:45:41"]
[WhiteElo "1398"]
[BlackElo "1581"]
[TimeControl "180+3"]
[Termination "hipposcottimus won by resignation"]
[StartTime "18:45:41"]
[EndDate "2010.12.07"]
[EndTime "18:51:00"]
[Link "https://www.chess.com/game/live/75001129"]

1. e4 {[%clk 0:03:00]} 1... c5 {[%clk 0:03:00]} 2. Bb5 {[%clk 0:03:01.3]} 2... a6 {[%clk 0:02:59.5]} 3. Be2 {[%clk 0:03:03.6]} 3... e6 {[%clk 0:02:59.9]} 4. Nc3 {[%clk 0:03:06.2]} 4... Nc6 {[%clk 0:03:01.3]} 5. Nf3 {[%clk 0:03:06.5]} 5... Be7 {[%clk 0:03:03.4]} 6. d4 {[%clk 0:03:08.2]} 6... cxd4 {[%clk 0:03:04.6]} 7. Nxd4 {[%clk 0:03:10.9]} 7... Nf6 {[%clk 0:03:06.6]} 8. f4 {[%clk 0:03:08.2]} 8... O-O {[%clk 0:03:04.1]} 9. O-O {[%clk 0:03:08.8]} 9... Bc5 {[%clk 0:02:49.5]} 10. Be3 {[%clk 0:03:03]} 10... Qb6 {[%clk 0:02:48.7]} 11. Na4 {[%clk 0:03:02.5]} 11... Qb5 {[%clk 0:02:30.7]} 12. Bxb5 {[%clk 0:02:59]} 12... axb5 {[%clk 0:02:30.3]} 13. Nxc5 {[%clk 0:03:00.5]} 13... d6 {[%clk 0:02:29.3]} 14. Nxc6 {[%clk 0:02:52.6]} 14... dxc5 {[%clk 0:02:27.6]} 15. e5 {[%clk 0:02:38.9]} 15... Nd5 {[%clk 0:02:26.3]} 16. Qf3 {[%clk 0:02:29.5]} 16... bxc6 {[%clk 0:02:27.2]} 17. Qg3 {[%clk 0:02:25.3]} 17... Bb7 {[%clk 0:02:24.3]} 18. f5 {[%clk 0:02:25.2]} 18... Rfe8 {[%clk 0:02:11.3]} 19. Bh6 {[%clk 0:02:20.3]} 19... g6 {[%clk 0:02:07]} 20. fxg6 {[%clk 0:02:20.7]} 20... fxg6 {[%clk 0:02:08.5]} 21. b3 {[%clk 0:02:14.9]} 21... c4 {[%clk 0:02:06.3]} 22. Rab1 {[%clk 0:02:08.1]} 22... c3 {[%clk 0:02:01]} 23. Rf6 {[%clk 0:01:58.7]} 23... Rxa2 {[%clk 0:01:54.3]} 24. Rxg6+ {[%clk 0:01:58.8]} 24... Kh8 {[%clk 0:01:50.5]} 25. Rxe6 {[%clk 0:01:53.7]} 25... Rg8 {[%clk 0:01:43.8]} 26. Bg7+ {[%clk 0:01:43.3]} 1-0

[Event "Live Chess"]
[Site "Chess.com"]
[Date "2010.12.07"]
[Round "-"]
[White "hoopla"]
[Black "hipposcottimus"]
[Result "0-1"]
[CurrentPosition "4Rrk1/1Qp2ppp/1pP5/3P4/8/5PPb/2q4P/R5K1 b - -"]
[Timezone "UTC"]
[ECO "C47"]
[ECOUrl "https://www.chess.com/openings/Four-Knights-Game-Italian-Variation"]
[UTCDate "2010.12.07"]
[UTCTime "07:27:18"]
[WhiteElo "1332"]
[BlackElo "1385"]
[TimeControl "420+2"]
[Termination "hipposcottimus won by resignation"]
[StartTime "07:27:18"]
[EndDate "2010.12.07"]
[EndTime "07:42:33"]
[Link "https://www.chess.com/game/live/74847409"]

1. e4 {[%clk 0:07:00]} 1... e5 {[%clk 0:07:00]} 2. Nf3 {[%clk 0:06:56.3]} 2... Nc6 {[%clk 0:07:01]} 3. Bc4 {[%clk 0:06:56]} 3... Nf6 {[%clk 0:07:01.9]} 4. Nc3 {[%clk 0:06:47.3]} 4... b6 {[%clk 0:06:49]} 5. Bb5 {[%clk 0:06:30.7]} 5... Bb7 {[%clk 0:06:45.6]} 6. Ng5 {[%clk 0:06:19.7]} 6... a6 {[%clk 0:06:39.7]} 7. Bc4 {[%clk 0:06:19]} 7... d5 {[%clk 0:06:38.9]} 8. exd5 {[%clk 0:06:13.9]} 8... Na5 {[%clk 0:06:40.3]} 9. d3 {[%clk 0:05:22.7]} 9... Nxc4 {[%clk 0:06:08.6]} 10. dxc4 {[%clk 0:05:22.6]} 10... Bb4 {[%clk 0:06:03.4]} 11. Bd2 {[%clk 0:05:17]} 11... Bxc3 {[%clk 0:04:42.6]} 12. Bxc3 {[%clk 0:05:15.1]} 12... e4 {[%clk 0:04:42.5]} 13. Bxf6 {[%clk 0:05:11.2]} 13... Qxf6 {[%clk 0:04:42.3]} 14. Nxe4 {[%clk 0:05:10.4]} 14... Qxb2 {[%clk 0:04:42.3]} 15. O-O {[%clk 0:05:02.5]} 15... O-O {[%clk 0:04:40.4]} 16. c5 {[%clk 0:04:47.3]} 16... Rae8 {[%clk 0:04:37.2]} 17. c6 {[%clk 0:04:38.3]} 17... Bc8 {[%clk 0:04:24.5]} 18. Re1 {[%clk 0:04:25.7]} 18... Bf5 {[%clk 0:04:21]} 19. f3 {[%clk 0:04:10.6]} 19... Qb5 {[%clk 0:04:10.8]} 20. Rb1 {[%clk 0:03:43.6]} 20... Qc4 {[%clk 0:04:01.7]} 21. Qd3 {[%clk 0:03:20.2]} 21... Qxa2 {[%clk 0:03:53.9]} 22. Ra1 {[%clk 0:03:10.9]} 22... Qb2 {[%clk 0:03:52.8]} 23. Rxa6 {[%clk 0:03:07.9]} 23... Qb4 {[%clk 0:03:38]} 24. Raa1 {[%clk 0:02:11.3]} 24... Qb2 {[%clk 0:00:59]} 25. Nf6+ {[%clk 0:02:00.6]} 25... Qxf6 {[%clk 0:00:58.8]} 26. Qa6 {[%clk 0:01:24.5]} 26... Qg6 {[%clk 0:00:26.2]} 27. Qb7 {[%clk 0:01:17]} 27... Bh3 {[%clk 0:00:26.5]} 28. g3 {[%clk 0:01:01.2]} 28... Qxc2 {[%clk 0:00:26.2]} 29. Rxe8 {[%clk 0:00:27.7]} 0-1

[Event "Live Chess"]
[Site "Chess.com"]
[Date "2010.12.07"]
[Round "-"]
[White "hipposcottimus"]
[Black "hoopla"]
[Result "1-0"]
[CurrentPosition "k2r4/1ppNQ3/p6p/8/8/q7/6PP/4R2K b - -"]
[Timezone "UTC"]
[ECO "C50"]
[ECOUrl "https://www.chess.com/openings/Italian-Game"]
[UTCDate "2010.12.07"]
[UTCTime "07:11:46"]
[WhiteElo "1378"]
[BlackElo "1339"]
[TimeControl "420+2"]
[Termination "hipposcottimus won on time"]
[StartTime "07:11:46"]
[EndDate "2010.12.07"]
[EndTime "07:26:01"]
[Link "https://www.chess.com/game/live/74844606"]

1. e4 {[%clk 0:07:00]} 1... e5 {[%clk 0:07:00]} 2. Nf3 {[%clk 0:06:59.8]} 2... Nc6 {[%clk 0:06:50.5]} 3. Bc4 {[%clk 0:06:59.5]} 3... a6 {[%clk 0:06:43.6]} 4. d4 {[%clk 0:06:57.4]} 4... exd4 {[%clk 0:06:34.3]} 5. Ng5 {[%clk 0:06:55.7]} 5... d5 {[%clk 0:06:14.9]} 6. Bxd5 {[%clk 0:06:51.7]} 6... Be6 {[%clk 0:05:57.6]} 7. Bxe6 {[%clk 0:06:29.2]} 7... fxe6 {[%clk 0:05:56.5]} 8. Nxe6 {[%clk 0:06:29.1]} 8... Qd6 {[%clk 0:05:46]} 9. Nxf8 {[%clk 0:05:57.2]} 9... Qxf8 {[%clk 0:05:44.3]} 10. O-O {[%clk 0:05:55.6]} 10... O-O-O {[%clk 0:05:42.6]} 11. f4 {[%clk 0:05:49.1]} 11... Nf6 {[%clk 0:05:32.1]} 12. e5 {[%clk 0:05:47.9]} 12... Nd5 {[%clk 0:05:18.8]} 13. Rf3 {[%clk 0:05:47.8]} 13... Nde7 {[%clk 0:04:37.2]} 14. a3 {[%clk 0:05:41.8]} 14... Nf5 {[%clk 0:04:35.8]} 15. Rd3 {[%clk 0:05:39]} 15... h6 {[%clk 0:04:24.4]} 16. c3 {[%clk 0:05:30.7]} 16... g5 {[%clk 0:04:19.7]} 17. cxd4 {[%clk 0:05:22.6]} 17... Ncxd4 {[%clk 0:04:18.2]} 18. Nc3 {[%clk 0:05:19.3]} 18... Rg8 {[%clk 0:03:26.6]} 19. Ne4 {[%clk 0:05:08.6]} 19... gxf4 {[%clk 0:03:02.7]} 20. Bxf4 {[%clk 0:04:52.7]} 20... Nh4 {[%clk 0:02:39.3]} 21. Bg3 {[%clk 0:04:51.6]} 21... Nhf5 {[%clk 0:02:30.3]} 22. Bf4 {[%clk 0:04:48.9]} 22... Ne6 {[%clk 0:01:54.9]} 23. Bg3 {[%clk 0:04:17.2]} 23... Nxg3 {[%clk 0:01:52.7]} 24. Nxg3 {[%clk 0:04:17.9]} 24... Nf4 {[%clk 0:01:47.9]} 25. Rxd8+ {[%clk 0:04:03.2]} 25... Qxd8 {[%clk 0:01:44.8]} 26. Qf3 {[%clk 0:03:58.3]} 26... Rf8 {[%clk 0:01:30.5]} 27. Qe4 {[%clk 0:03:40.1]} 27... Qd2 {[%clk 0:01:04.7]} 28. e6 {[%clk 0:03:32.9]} 28... Nxe6 {[%clk 0:01:00.4]} 29. Qxe6+ {[%clk 0:03:27.2]} 29... Kb8 {[%clk 0:00:58]} 30. Ne4 {[%clk 0:02:57.7]} 30... Qd4+ {[%clk 0:00:27.6]} 31. Kh1 {[%clk 0:02:47.2]} 31... Qxb2 {[%clk 0:00:16.4]} 32. Re1 {[%clk 0:02:27.2]} 32... Qxa3 {[%clk 0:00:08.1]} 33. Nf6 {[%clk 0:02:25.4]} 33... Rd8 {[%clk 0:00:05.9]} 34. Nd7+ {[%clk 0:02:19.8]} 34... Ka8 {[%clk 0:00:03.6]} 35. Qe7 {[%clk 0:02:17.2]} 1-0

[Event "Live Chess"]
[Site "Chess.com"]
[Date "2010.12.07"]
[Round "-"]
[White "hoopla"]
[Black "hipposcottimus"]
[Result "1-0"]
[CurrentPosition "8/p5pp/5pk1/1pQ5/8/8/1PP2PPP/qK1RN3 w - -"]
[Timezone "UTC"]
[ECO "C45"]
[ECOUrl "https://www.chess.com/openings/Scotch-Game"]
[UTCDate "2010.12.07"]
[UTCTime "07:01:39"]
[WhiteElo "1346"]
[BlackElo "1371"]
[TimeControl "420+2"]
[Termination "hoopla won by resignation"]
[StartTime "07:01:39"]
[EndDate "2010.12.07"]
[EndTime "07:10:35"]
[Link "https://www.chess.com/game/live/74842915"]

1. e4 {[%clk 0:07:00]} 1... e5 {[%clk 0:07:00]} 2. Nf3 {[%clk 0:06:58.6]} 2... Nc6 {[%clk 0:07:00.4]} 3. d4 {[%clk 0:06:57.5]} 3... d5 {[%clk 0:06:58]} 4. Bb5 {[%clk 0:06:43.9]} 4... Bd7 {[%clk 0:06:51.3]} 5. dxe5 {[%clk 0:06:17.3]} 5... Nxe5 {[%clk 0:06:46.3]} 6. Bxd7+ {[%clk 0:06:14]} 6... Nxd7 {[%clk 0:06:46.5]} 7. exd5 {[%clk 0:06:13.7]} 7... Bd6 {[%clk 0:06:45.9]} 8. Nc3 {[%clk 0:06:06.7]} 8... Ngf6 {[%clk 0:06:36.2]} 9. Bg5 {[%clk 0:05:56]} 9... O-O {[%clk 0:06:32.1]} 10. Qd2 {[%clk 0:05:40.8]} 10... Re8+ {[%clk 0:06:12.2]} 11. Ne2 {[%clk 0:05:36.2]} 11... Be7 {[%clk 0:06:08]} 12. Nc3 {[%clk 0:04:58.3]} 12... Nxd5 {[%clk 0:05:49.6]} 13. O-O-O {[%clk 0:04:18]} 13... Nxc3 {[%clk 0:05:24]} 14. Bxe7 {[%clk 0:03:59.8]} 14... Nxa2+ {[%clk 0:05:01.3]} 15. Kb1 {[%clk 0:03:41.8]} 15... Rxe7 {[%clk 0:04:34.6]} 16. Kxa2 {[%clk 0:03:36.5]} 16... f6 {[%clk 0:04:30]} 17. Rhe1 {[%clk 0:03:30.3]} 17... Rxe1 {[%clk 0:04:27]} 18. Nxe1 {[%clk 0:03:30.4]} 18... c5 {[%clk 0:03:59.7]} 19. Qxd7 {[%clk 0:03:28.9]} 19... Qa5+ {[%clk 0:04:01.3]} 20. Kb1 {[%clk 0:03:23.2]} 20... b5 {[%clk 0:04:01.9]} 21. Qd5+ {[%clk 0:03:13.9]} 21... Kf8 {[%clk 0:03:59.1]} 22. Qxa8+ {[%clk 0:03:14.2]} 22... Kf7 {[%clk 0:03:59.7]} 23. Qd5+ {[%clk 0:03:00.6]} 23... Kg6 {[%clk 0:03:58.3]} 24. Qxc5 {[%clk 0:03:00.2]} 24... Qa1+ {[%clk 0:03:52.4]} 1-0

[Event "Live Chess"]
[Site "Chess.com"]
[Date "2010.12.07"]
[Round "-"]
[White "hipposcottimus"]
[Black "hoopla"]
[Result "1-0"]
[CurrentPosition "r2qkr2/1p2pp1p/p7/2p5/8/8/PBPPNPPP/R2Q1RK1 b q -"]
[Timezone "UTC"]
[ECO "B20"]
[ECOUrl "https://www.chess.com/openings/Sicilian-Defense"]
[UTCDate "2010.12.07"]
[UTCTime "06:58:17"]
[WhiteElo "1380"]
[BlackElo "1337"]
[TimeControl "420+2"]
[Termination "hipposcottimus won by resignation"]
[StartTime "06:58:17"]
[EndDate "2010.12.07"]
[EndTime "07:01:07"]
[Link "https://www.chess.com/game/live/74842331"]

1. e4 {[%clk 0:07:00]} 1... c5 {[%clk 0:07:00]} 2. Bb5 {[%clk 0:07:00.3]} 2... Nf6 {[%clk 0:06:47.3]} 3. Nc3 {[%clk 0:06:57.2]} 3... a6 {[%clk 0:06:40.8]} 4. Be2 {[%clk 0:06:55.7]} 4... Nc6 {[%clk 0:06:32.2]} 5. Nf3 {[%clk 0:06:55.4]} 5... d5 {[%clk 0:06:16.1]} 6. e5 {[%clk 0:06:46.2]} 6... d4 {[%clk 0:06:10.3]} 7. exf6 {[%clk 0:06:46.8]} 7... dxc3 {[%clk 0:06:10.5]} 8. fxg7 {[%clk 0:06:43.9]} 8... cxb2 {[%clk 0:05:59.9]} 9. gxf8=Q+ {[%clk 0:06:37.3]} 9... Rxf8 {[%clk 0:05:52.2]} 10. Bxb2 {[%clk 0:06:38.1]} 10... Nd4 {[%clk 0:05:46.1]} 11. O-O {[%clk 0:06:33.8]} 11... Bg4 {[%clk 0:05:41.4]} 12. Nxd4 {[%clk 0:06:33.6]} 12... Bxe2 {[%clk 0:05:32]} 13. Nxe2 {[%clk 0:06:34.8]} 1-0

[Event "Live Chess"]
[Site "Chess.com"]
[Date "2010.12.07"]
[Round "-"]
[White "hipposcottimus"]
[Black "sethesteban"]
[Result "0-1"]
[CurrentPosition "8/pp1nBrk1/6p1/3p4/3p4/6R1/P4PPP/2r1R1K1 b - -"]
[Timezone "UTC"]
[ECO "C40"]
[ECOUrl "https://www.chess.com/openings/Kings-Pawn-Opening-Kings-Knight-Busch-Gass-Gambit"]
[UTCDate "2010.12.07"]
[UTCTime "06:51:25"]
[WhiteElo "1373"]
[BlackElo "1329"]
[TimeControl "360"]
[Termination "sethesteban won by resignation"]
[StartTime "06:51:25"]
[EndDate "2010.12.07"]
[EndTime "06:57:37"]
[Link "https://www.chess.com/game/live/74841039"]

1. e4 {[%clk 0:06:00]} 1... e5 {[%clk 0:06:00]} 2. Nf3 {[%clk 0:05:54.6]} 2... Bc5 {[%clk 0:05:58.3]} 3. b4 {[%clk 0:05:51.8]} 3... Bxb4 {[%clk 0:05:55.8]} 4. c3 {[%clk 0:05:51.3]} 4... Bc5 {[%clk 0:05:49.9]} 5. d4 {[%clk 0:05:50.6]} 5... exd4 {[%clk 0:05:48.1]} 6. cxd4 {[%clk 0:05:50.2]} 6... Bb4+ {[%clk 0:05:46.6]} 7. Bd2 {[%clk 0:05:49.9]} 7... Qe7 {[%clk 0:05:43.1]} 8. Nc3 {[%clk 0:05:47.3]} 8... Bxc3 {[%clk 0:05:36.6]} 9. Bxc3 {[%clk 0:05:46.5]} 9... Qxe4+ {[%clk 0:05:35.3]} 10. Be2 {[%clk 0:05:46.1]} 10... d6 {[%clk 0:05:30.2]} 11. O-O {[%clk 0:05:45.8]} 11... Ne7 {[%clk 0:05:28.1]} 12. Bb5+ {[%clk 0:05:42.9]} 12... c6 {[%clk 0:05:23.4]} 13. Re1 {[%clk 0:05:42.5]} 13... Qg6 {[%clk 0:05:13.4]} 14. Qe2 {[%clk 0:05:41.1]} 14... Be6 {[%clk 0:05:10.7]} 15. Ba4 {[%clk 0:05:34.5]} 15... O-O {[%clk 0:05:07.5]} 16. Bb3 {[%clk 0:05:32.2]} 16... d5 {[%clk 0:04:53.4]} 17. Ne5 {[%clk 0:05:28.1]} 17... Qg5 {[%clk 0:04:34.5]} 18. Bd2 {[%clk 0:05:23.2]} 18... Qh4 {[%clk 0:04:12.7]} 19. Nf3 {[%clk 0:05:12.4]} 19... Qh5 {[%clk 0:04:04.7]} 20. Bf4 {[%clk 0:05:05.1]} 20... Nd7 {[%clk 0:03:41.7]} 21. Bc2 {[%clk 0:04:59.6]} 21... Rae8 {[%clk 0:03:34.7]} 22. Ng5 {[%clk 0:04:57.1]} 22... Qxe2 {[%clk 0:03:27.7]} 23. Bxh7+ {[%clk 0:04:55.8]} 23... Kh8 {[%clk 0:03:21.1]} 24. Rxe2 {[%clk 0:04:55.4]} 24... g6 {[%clk 0:02:49.8]} 25. Nxe6 {[%clk 0:04:48.6]} 25... fxe6 {[%clk 0:02:48.6]} 26. Rxe6 {[%clk 0:04:48.1]} 26... Kxh7 {[%clk 0:02:47.1]} 27. Bd6 {[%clk 0:04:45.4]} 27... Rf7 {[%clk 0:02:40.2]} 28. Rae1 {[%clk 0:04:39.9]} 28... c5 {[%clk 0:02:12.7]} 29. Bxe7 {[%clk 0:04:36.5]} 29... Rc8 {[%clk 0:01:56.3]} 30. R1e3 {[%clk 0:04:34.7]} 30... cxd4 {[%clk 0:01:53.2]} 31. Rh3+ {[%clk 0:04:33.2]} 31... Kg7 {[%clk 0:01:44.2]} 32. Rg3 {[%clk 0:04:26.8]} 32... Rc1+ {[%clk 0:01:41.2]} 33. Re1 {[%clk 0:04:23.2]} 0-1

[Event "Live Chess"]
[Site "Chess.com"]
[Date "2010.12.07"]
[Round "-"]
[White "StrategicThinker"]
[Black "hipposcottimus"]
[Result "1-0"]
[CurrentPosition "1r4k1/5ppp/4p3/1BBb4/P3p3/2P4P/2P1NPP1/1K1R3R b - -"]
[Timezone "UTC"]
[ECO "C26"]
[ECOUrl "https://www.chess.com/openings/Vienna-Game-Falkbeer-Stanley-Variation"]
[UTCDate "2010.12.07"]
[UTCTime "06:06:21"]
[WhiteElo "1392"]
[BlackElo "1382"]
[TimeControl "300"]
[Termination "StrategicThinker won on time"]
[StartTime "06:06:21"]
[EndDate "2010.12.07"]
[EndTime "06:15:01"]
[Link "https://www.chess.com/game/live/74832664"]

1. e4 {[%clk 0:05:00]} 1... e5 {[%clk 0:05:00]} 2. Bc4 {[%clk 0:04:56.1]} 2... Nf6 {[%clk 0:04:55.1]} 3. Nc3 {[%clk 0:04:54.1]} 3... Bb4 {[%clk 0:04:48.6]} 4. h3 {[%clk 0:04:43.6]} 4... Bxc3 {[%clk 0:04:46.6]} 5. dxc3 {[%clk 0:04:40.3]} 5... b5 {[%clk 0:04:46.3]} 6. Bb3 {[%clk 0:04:38.2]} 6... Nxe4 {[%clk 0:04:35]} 7. Qd5 {[%clk 0:04:36.5]} 7... Nd6 {[%clk 0:04:25.6]} 8. Qxa8 {[%clk 0:04:26.4]} 8... Nc6 {[%clk 0:04:18.7]} 9. Bd5 {[%clk 0:04:14.1]} 9... O-O {[%clk 0:04:08.9]} 10. Bxc6 {[%clk 0:04:11.1]} 10... Qf6 {[%clk 0:03:52.1]} 11. Bf3 {[%clk 0:03:58.4]} 11... Bb7 {[%clk 0:03:36]} 12. Qxa7 {[%clk 0:03:55.6]} 12... e4 {[%clk 0:03:33.2]} 13. Be2 {[%clk 0:03:45.3]} 13... Bc6 {[%clk 0:03:15.4]} 14. Qxc7 {[%clk 0:03:38.2]} 14... Re8 {[%clk 0:02:33]} 15. Be3 {[%clk 0:03:35.1]} 15... Nf5 {[%clk 0:02:29.5]} 16. O-O-O {[%clk 0:03:05.3]} 16... Ra8 {[%clk 0:02:20.7]} 17. a3 {[%clk 0:03:00.7]} 17... Qe6 {[%clk 0:02:10.3]} 18. Kb1 {[%clk 0:02:54.4]} 18... Bd5 {[%clk 0:02:03.6]} 19. Qb6 {[%clk 0:02:14.5]} 19... Nd6 {[%clk 0:01:31.7]} 20. Bc5 {[%clk 0:02:03.1]} 20... Nc4 {[%clk 0:00:18.4]} 21. Qxe6 {[%clk 0:01:57.3]} 21... Nxa3+ {[%clk 0:00:15.9]} 22. bxa3 {[%clk 0:01:50.6]} 22... dxe6 {[%clk 0:00:12.7]} 23. Bxb5 {[%clk 0:01:45.5]} 23... Rd8 {[%clk 0:00:05.4]} 24. Ne2 {[%clk 0:01:32.9]} 24... Rb8 {[%clk 0:00:01.7]} 25. a4 {[%clk 0:01:31.3]} 1-0

[Event "Live Chess"]
[Site "Chess.com"]
[Date "2010.12.07"]
[Round "-"]
[White "hipposcottimus"]
[Black "StrategicThinker"]
[Result "0-1"]
[CurrentPosition "r5k1/pq4p1/2bb3p/2p5/7B/2N4P/PPP3n1/3R2K1 b - -"]
[Timezone "UTC"]
[ECO "C55"]
[ECOUrl "https://www.chess.com/openings/Italian-Game-Anti-Fried-Liver-Defense"]
[UTCDate "2010.12.07"]
[UTCTime "05:59:35"]
[WhiteElo "1390"]
[BlackElo "1384"]
[TimeControl "300"]
[Termination "StrategicThinker won by resignation"]
[StartTime "05:59:35"]
[EndDate "2010.12.07"]
[EndTime "06:05:54"]
[Link "https://www.chess.com/game/live/74831235"]

1. e4 {[%clk 0:05:00]} 1... e5 {[%clk 0:05:00]} 2. Nf3 {[%clk 0:04:58.2]} 2... Nc6 {[%clk 0:04:58.2]} 3. Bc4 {[%clk 0:04:56.9]} 3... h6 {[%clk 0:04:56.3]} 4. d4 {[%clk 0:04:53.6]} 4... exd4 {[%clk 0:04:52.2]} 5. Nxd4 {[%clk 0:04:50.6]} 5... Nxd4 {[%clk 0:04:51.1]} 6. Qxd4 {[%clk 0:04:49.5]} 6... c5 {[%clk 0:04:49.7]} 7. Qd5 {[%clk 0:04:43.1]} 7... Qe7 {[%clk 0:04:48]} 8. e5 {[%clk 0:04:35]} 8... f6 {[%clk 0:04:24.3]} 9. O-O {[%clk 0:04:11]} 9... fxe5 {[%clk 0:04:05]} 10. Bd2 {[%clk 0:04:02.7]} 10... Nf6 {[%clk 0:03:58]} 11. Qf3 {[%clk 0:03:44.6]} 11... d6 {[%clk 0:03:54.4]} 12. Nc3 {[%clk 0:03:40.4]} 12... Bg4 {[%clk 0:03:45]} 13. Qxb7 {[%clk 0:03:36.7]} 13... Qxb7 {[%clk 0:03:39.9]} 14. Bb5+ {[%clk 0:03:34.8]} 14... Ke7 {[%clk 0:03:27.1]} 15. f3 {[%clk 0:03:33.6]} 15... Bd7 {[%clk 0:03:22.6]} 16. Rfe1 {[%clk 0:03:32.7]} 16... Bxb5 {[%clk 0:03:19.6]} 17. f4 {[%clk 0:03:32.4]} 17... Bd7 {[%clk 0:02:59.9]} 18. fxe5 {[%clk 0:03:30.4]} 18... dxe5 {[%clk 0:02:58.7]} 19. Rxe5+ {[%clk 0:03:27.7]} 19... Kf7 {[%clk 0:02:52.5]} 20. Rae1 {[%clk 0:03:21.7]} 20... Bd6 {[%clk 0:02:39.6]} 21. R5e3 {[%clk 0:03:16.2]} 21... Rhe8 {[%clk 0:02:30.2]} 22. Rf3 {[%clk 0:03:12.5]} 22... Rxe1+ {[%clk 0:02:27.7]} 23. Bxe1 {[%clk 0:03:10.3]} 23... Bc6 {[%clk 0:02:21.8]} 24. Rf1 {[%clk 0:03:06.3]} 24... Kg8 {[%clk 0:02:09.2]} 25. Bh4 {[%clk 0:02:44]} 25... Ng4 {[%clk 0:02:05.2]} 26. h3 {[%clk 0:02:34.6]} 26... Ne3 {[%clk 0:01:46.5]} 27. Re1 {[%clk 0:02:27.1]} 27... Nxg2 {[%clk 0:01:42.3]} 28. Rd1 {[%clk 0:02:12.7]} 0-1